Cogmind - Beta 15 @@@ ROGUE MODE // 2025.10.12 @ 19:20:37 Player: weedlord420 Result: Destroyed by Q5-CQY(B) with Slug Cannon Performance ------------- Evolutions (4) 2000 Regions Visited (12) 2400 Robots Destroyed (224) 1120 Value Destroyed (7021) 7021 Prototype IDs (19) 380 Alien Tech Used (0) 0 Bonus (939) 939 TOTAL SCORE: 13860 Bonus ------- High Alert Combat Kills 499 Follower Combat Kills 489 Entered Garrisons 200 Friendly Fire -249 Cogmind --------- Core Integrity 0/850 Matter 189/300 Energy 11/150 System Corruption 0% Temperature Cool (0) Movement Treading (154) Ox2 Location -6/Zion Parts ------- > --- POWER (1) -------- Antimatter-Fission Reactor > --- PROPULSION (3) --- Treaded Carbon-Gravmag Exoskeleton > --- UTILITY (9) ------ Armored Scrap Engine High-capacity Storage Unit Advanced Sensor Array Improved Signal Interpreter Advanced Targeting Computer Core Analyzer Force Field > --- WEAPON (2) ------- Thermic Plasma Construct/G > --- INVENTORY (20) --- Angular Momentum Engine Compact Battery (200) Compact Battery (200) Structural Scanner Improved Sensor Array Improved Signal Interpreter Focal Shield Makeshift Hacking Suite Makeshift Hacking Suite Makeshift Hacking Suite Makeshift Hacking Suite Improved Hacking Suite Authchip [Armor] Authchip [Armor] Authchip [Weapon] Heavy Rocket Launcher Heavy Rocket Launcher Remote Datajack Plasma Cutter Power Maul Peak State ------------ > --- POWER ------------ Antimatter-Fission Reactor > --- PROPULSION ------- Treaded Carbon-Gravmag Exoskeleton > --- UTILITY ---------- Armored Scrap Engine High-capacity Storage Unit Advanced Sensor Array Improved Signal Interpreter Advanced Targeting Computer Core Analyzer Force Field System Guard > --- WEAPON ----------- Molecular Deconstructor > --- INVENTORY -------- Angular Momentum Engine Compact Battery Compact Battery Structural Scanner Improved Sensor Array Improved Signal Interpreter Focal Shield Improved Hacking Suite Authchip [Armor] Authchip [Armor] Authchip [Weapon] Authchip [Weapon] Heavy Rocket Launcher Heavy Rocket Launcher Remote Datajack Plasma Cutter Power Maul [Rating: 86] Favorites ----------- Power Constructs Engine Heavy Ion Engine Reactor Constructs Propulsion Wheel Treads Medium Treads Wheel Wheel Hover Unit Aerolev Unit Flight Unit Improved VTOL Module Utility High-capacity Storage Unit Device Armored Scrap Engine Storage High-capacity Storage Unit Processor Improved Signal Interpreter Hackware Hacking Suite Protection Hardened Medium Armor Plating Weapon Enhanced Autogun Energy Gun Medium Laser Energy Cannon Constructs Ballistic Gun Enhanced Autogun Ballistic Cannon Mini Assault Cannon Launcher Heavy Rocket Launcher Special Weapon Molecular Deconstructor Impact Weapon Makeshift Hammer Build | -11 -10 -10 -9 -9 -8 -8 -8 -8 -6 -6 -6 -6 ------- Run | Yrd Mat Min Mat Min Mat Sto Gar Rec Fac Low Low Zio Slots Evolved 8 | . . . 2 . 2 . . . 4 . . . Power . | . . . . . . . . . . . . . Propulsion 1 | . . . . . . . . . 1 . . . Utility 7 | . . . 2 . 2 . . . 3 . . . Weapon . | . . . . . . . . . . . . . Parts Attached 104 | 4 9 1 30 3 12 16 8 5 15 1 . . Power 6 | 1 1 . 2 . . . 2 . . . . . Engine 6 | 1 1 . 2 . . . 2 . . . . . Core . | . . . . . . . . . . . . . Reactor . | . . . . . . . . . . . . . Propulsion 25 | 2 2 1 10 3 1 6 . . . . . . Treads 12 | . . . 6 2 . 4 . . . . . . Leg . | . . . . . . . . . . . . . Wheel 11 | 2 2 1 3 1 1 1 . . . . . . Hover 1 | . . . . . . 1 . . . . . . Flight 1 | . . . 1 . . . . . . . . . Utility 38 | 1 2 . 8 . 7 1 2 3 14 . . . Device 11 | . 1 . 1 . 2 . 1 3 3 . . . Storage 3 | 1 1 . . . . . . . 1 . . . Processor 7 | . . . 1 . 2 . 1 . 3 . . . Hackware 4 | . . . 1 . . . . . 3 . . . Protection 13 | . . . 5 . 3 1 . . 4 . . . Artifact . | . . . . . . . . . . . . . Weapon 35 | . 4 . 10 . 4 9 4 2 1 1 . . Energy Gun 4 | . 1 . . . . 3 . . . . . . Energy Cannon 1 | . . . . . . 1 . . . . . . Ballistic Gun 16 | . 2 . 7 . 1 2 3 1 . . . . Ballistic Cannon 3 | . . . . . 2 1 . . . . . . Launcher 7 | . 1 . 3 . 1 2 . . . . . . Special Weapon 2 | . . . . . . . . 1 . 1 . . Impact Weapon 2 | . . . . . . . 1 . 1 . . . Slashing Weapon . | . . . . . . . . . . . . . Piercing Weapon . | . . . . . . . . . . . . . Special Melee Weapon . | . . . . . . . . . . . . . Unidentified Prototypes 14 | . . . 3 . 3 6 . 1 . 1 . . Parts Lost 30 | . 4 . 6 . . 3 1 . 16 . . . Power 5 | . 1 . 1 . . . . . 3 . . . Propulsion 8 | . 2 . 2 . . 1 . . 3 . . . Utility 13 | . 1 . 2 . . 2 1 . 7 . . . Weapon 4 | . . . 1 . . . . . 3 . . . Highest Loss Streak 5 | . 2 . 3 . . 1 1 . 5 . . . To Critical Strikes . | . . . . . . . . . . . . . Average Backups 17 | 3 7 12 18 20 19 19 19 17 16 16 17 20 Power . | . . . 1 1 1 1 . . . 1 1 1 Propulsion 3 | 2 2 4 6 7 6 5 4 2 . . . . Utility 7 | . 1 3 3 7 5 5 6 8 10 10 11 14 Weapon 4 | . 1 4 5 3 4 7 7 4 2 2 2 3 Tool/Special . | . . . . . . . . . . . . . Unused Backups 28 | . . . 5 1 4 . 1 . 2 . 1 14 Power 2 | . . . 1 . . . . . . . . 1 Propulsion 4 | . . . 1 . 2 . 1 . . . . . Utility 20 | . . . 3 1 1 . . . 2 . 1 12 Weapon . | . . . . . . . . . . . . . Tool/Special 2 | . . . . . 1 . . . . . . 1 Average Slot Usage (%) 87 | . 85 85 95 100 97 99 99 87 74 71 73 68 Engine 8 | . 13 14 10 11 9 9 9 8 5 . . . Treads 5 | . . . 5 . . 1 17 10 . 5 6 6 Wheel 8 | . 26 28 16 21 17 16 . 2 1 . . . Device 11 | . 3 . 10 11 19 20 5 8 11 18 20 20 Storage 8 | . 14 14 11 11 9 9 9 9 6 6 6 6 Processor 14 | . . . 7 11 9 9 16 18 20 26 26 22 Hackware 1 | . . . 3 . . . . . 5 . . . Protection 8 | . . . 7 11 14 14 22 13 2 . . . Energy Gun 1 | . 13 14 1 . . . . . 2 . . . Ballistic Gun 10 | . 12 7 20 22 11 4 14 10 4 . . 6 Ballistic Cannon 2 | . . . . . 5 13 . 4 1 2 . . Peak Build Rating 86 | 4 7 7 23 25 40 47 44 57 80 86 86 74 Average Rating 44 | 2 6 7 18 23 33 38 41 48 67 78 83 70 On Entrance 35 | . 4 7 7 23 24 40 33 44 54 61 86 74 Naked Turns . | . . . . . . . . . . . . . Heaviest Build 91 | 8 50 50 63 63 82 84 91 91 71 64 63 59 Greatest Support 73 | 20 20 20 40 46 26 56 56 56 73 24 22 22 Greatest Overweight (x) 8 | . 4 2 4 3 3 8 1 4 7 2 2 2 Average Overweight (x) 1 | . 1 2 2 2 2 2 1 1 . 2 2 2 Largest Inventory Capacity 20 | 8 20 20 20 20 20 20 20 20 20 20 20 20 Average Capacity 19 | 6 15 20 20 20 20 20 20 20 20 20 20 20 Most Carried 20 | 5 12 13 20 20 20 20 20 20 20 19 20 20 Average Carried 17 | 3 7 12 18 19 19 19 19 17 16 16 17 20 Final Capacity 20 | 8 20 20 20 20 20 20 20 20 20 20 20 20 Final Carried 20 | 5 11 13 20 20 20 20 20 20 17 17 20 20 Scrap Engine Consumption 122 | . . . . . . . . 32 78 7 5 . Constructs Created 10 | . . . . . . . . 3 5 1 1 . Constructs Modified 39 | . . . . . . . . 6 27 6 . . Class Distribution -------------------- 65% | Mutant 17% | Construct 5% | Commander-Construct 4% | Skirmisher 3% | Hacker-Construct Dominant Class ---------------- Mutant | -10/Materials Mutant | -10/Mines Mutant | -9/Materials Mutant | -9/Mines Mutant | -8/Materials Mutant | -8/Storage Mutant | -8/Garrison Mutant | -8/Recycling Construct | -6/Factory Construct | -6/Lower Caves Mutant | -6/Lower Caves Construct | -6/Zion Resources | -11 -10 -10 -9 -9 -8 -8 -8 -8 -6 -6 -6 -6 ----------- Run | Yrd Mat Min Mat Min Mat Sto Gar Rec Fac Low Low Zio Matter Collected 5706 | 240 154 22 1085 232 481 634 772 598 1376 61 51 . Remotely . | . . . . . . . . . . . . . Salvage Created 7947 | . 385 31 1574 681 630 576 716 1131 2106 69 48 . Parts 444 | . 33 11 112 34 39 35 44 38 88 3 7 . Haulers Intercepted 18 | . 2 . 6 . 5 3 . 1 1 . . . Recyclers Shooed 9 | . 2 . 1 . 1 1 . 4 . . . . Parts Field Recycled . | . . . . . . . . . . . . . Retrieved Matter . | . . . . . . . . . . . . . Parts Self-Destructed 3 | . . . . . . . . . . 2 1 . Prevented . | . . . . . . . . . . . . . Kills | -11 -10 -10 -9 -9 -8 -8 -8 -8 -6 -6 -6 -6 ------- Run | Yrd Mat Min Mat Min Mat Sto Gar Rec Fac Low Low Zio Combat Hostiles Destroyed 151 | . 13 6 33 12 9 12 19 7 35 . 5 . Melee 4 | . . . . . . . . . 4 . . . Guns 68 | . 10 . 22 12 5 . 7 4 8 . . . Cannons 28 | . . . . . 1 9 . 2 16 . . . AOE 44 | . 3 6 11 . 3 3 12 1 1 . 4 . Classes Destroyed 20 | . 6 . 4 3 . . 1 4 1 1 . . Worker 15 | . 1 . 5 . 1 4 . . 4 . . . Builder 10 | . 1 . 1 1 1 2 . 1 3 . . . Tunneler 1 | . . . . 1 . . . . . . . . Hauler 18 | . 2 . 6 . 5 3 . 1 1 . . . Recycler 13 | . 1 . 1 2 . . . 9 . . . . Mechanic 3 | . . . 1 . 1 . 1 . . . . . Operator 4 | . . . 3 . . . 1 . . . . . Watcher 8 | . . . 4 . 2 1 1 . . . . . Swarmer 40 | . 12 6 10 . 4 . 4 . . . 4 . Grunt 63 | . 1 . 14 9 4 8 8 . 19 . . . Brawler 4 | . . . . 2 . 1 1 . . . . . Duelist 3 | . . . . . . . 1 . 2 . . . Sentry 24 | . . . 9 . 2 3 5 3 2 . . . Demolisher 1 | . . . . . . . . 1 . . . . Specialist 1 | . . . . . . . . 1 . . . . Hunter 5 | . . . . . . . . . 4 . 1 . Programmer 9 | . . . . . . . . 1 8 . . . Scrapper 1 | . . . . . . . . 1 . . . . Decomposer 1 | . . . . . . . . . . 1 . . Samaritan 1 | . . . . . . . . . . 1 . . Assembled 1 | . . . . 1 . . . . . . . . Thug 1 | . . . . . 1 . . . . . . . Best Kill Streak 10 | . 5 3 10 4 8 9 7 6 7 . 4 . Combat Bots Only 7 | . 3 3 7 3 3 4 7 3 7 . 4 . Max Kills in Single Turn 8 | . 2 3 5 1 8 8 6 2 2 1 2 . Gunslinging 1 | . . . . . 1 . . . . . . . Exploded 5 | . 2 3 3 . 3 3 5 1 1 . 2 . Melee 1 | . . . . . . . . . 1 . . . Uniques/NPCs Destroyed . | . . . . . . . . . . . . . Combat | -11 -10 -10 -9 -9 -8 -8 -8 -8 -6 -6 -6 -6 -------- Run | Yrd Mat Min Mat Min Mat Sto Gar Rec Fac Low Low Zio Hostile Shots Fired 950 | . 48 14 124 24 18 68 42 40 490 7 36 39 Missed 288 | . 7 2 26 10 4 21 10 12 167 2 11 16 Hits 662 | . 41 12 98 14 14 47 32 28 323 5 25 23 Melee 5 | . . . . . . . 1 . 4 . . . Projectile 657 | . 41 12 98 14 14 47 31 28 319 5 25 23 AOE 3 | . . . . . . . . 2 1 . . . Critical Strikes 27 | . . . 1 1 1 3 1 2 18 . . . Damage Taken 9657 | . 349 99 1283 202 139 654 426 605 5228 83 332 257 Core 1438 | . 101 21 199 28 10 133 44 42 754 . 20 86 Absorbed by Shields 613 | . . . . . 57 215 114 . 49 28 87 63 Ignored by Resistances 223 | . . . . . 26 13 . . 184 . . . Regen/Repaired (Parts) 2431 | . . . 104 . 111 82 . 315 1168 556 95 . Core Remaining (%) 63 | 100 . 51 . 43 . . . 58 . . . . Volleys Fired 534 | . 49 5 98 27 33 52 51 50 157 5 7 . Largest 2 | . 2 2 2 2 2 2 2 2 2 1 1 . Hottest 110 | . 70 70 73 46 80 80 78 78 110 62 39 . Shots Fired 949 | . 93 7 195 54 65 103 96 76 248 5 7 . Gun 628 | . 91 4 183 54 50 16 68 43 119 . . . Cannon 260 | . . . . . 14 84 9 19 129 5 . . Launcher 48 | . 2 3 12 . 1 3 19 4 . . 4 . Special 13 | . . . . . . . . 10 . . 3 . Kinetic 752 | . 44 2 173 54 64 100 77 62 175 1 . . Thermal 132 | . 47 2 10 . . . . . 73 . . . Explosive 48 | . 2 3 12 . 1 3 19 4 . . 4 . Electromagnetic 4 | . . . . . . . . . . 4 . . Robot Hit Streak 28 | . 8 3 10 13 14 12 16 24 26 28 2 . Robot Miss Streak 5 | . 4 1 2 1 2 5 2 2 3 . 1 . Penetration Max 1 | . . . . . . . . . 1 . . . Secondary Targets 3 | . 1 . . . 1 . 1 . . . . . Max Gunslinging Chain 1 | . 1 . . . 1 . 1 . . . . . Shots Hit Robots 614 | . 56 4 129 41 42 47 58 57 176 2 2 . Core Hits 342 | . 27 7 87 24 24 32 55 23 59 2 2 . Critical Kills 4 | . . . 1 . . . . . 3 . . . Critical Parts Destroyed 10 | . . 1 1 1 . . 1 . 6 . . . Critical Strikes 23 | . 2 1 3 1 . 5 2 . 9 . . . Burn 3 | . 2 . 1 . . . . . . . . . Destroy 9 | . . 1 2 1 . . 1 . 4 . . . Blast 6 | . . . . . . 5 1 . . . . . Smash 5 | . . . . . . . . . 5 . . . Melee Attacks 50 | . . . . . . . 7 . 40 3 . . Impact 50 | . . . . . . . 7 . 40 3 . . Slashing . | . . . . . . . . . . . . . Piercing . | . . . . . . . . . . . . . Sneak Attacks 1 | . . . . . . . . . 1 . . . Combat Hostiles . | . . . . . . . . . . . . . Follow-up Attacks . | . . . . . . . . . . . . . Damage Inflicted 18768 | . 728 268 3025 641 1638 1997 2429 1091 6433 83 435 . Guns 7217 | . 594 14 1828 641 596 96 698 624 2126 . . . Cannons 4902 | . . . . . 195 1200 127 356 2941 83 . . Explosions 5345 | . 134 254 1197 . 847 701 1445 111 221 . 435 . Melee 1128 | . . . . . . . . . 1128 . . . Ramming 176 | . . . . . . . 159 . 17 . . . Kinetic 10498 | . 229 14 1725 641 791 1296 825 980 3957 40 . . Thermal 2227 | . 365 . 103 . 649 . . . 1110 . . . Explosive 4696 | . 134 254 1197 . 198 701 1445 111 221 . 435 . Electromagnetic 43 | . . . . . . . . . . 43 . . Impact 1128 | . . . . . . . . . 1128 . . . Slashing . | . . . . . . . . . . . . . Piercing . | . . . . . . . . . . . . . Highest Corruption 7 | . . . . . 2 2 2 2 7 3 3 3 Average Corruption 2 | . . . . . 2 2 2 2 1 3 3 3 Corruption Purged . | . . . . . . . . . . . . . Corruption Blocked . | . . . . . . . . . . . . . Effects 133 | . . . . . 5 23 31 21 29 12 11 1 Message Errors 26 | . . . . . 1 5 7 3 6 2 2 . Matter Fused 32 | . . . . . 1 9 4 4 4 4 5 1 Heat Flow Errors 16 | . . . . . . . 5 2 5 3 1 . Energy Discharges 15 | . . . . . 1 3 6 1 3 . 1 . Parts Rejected 1 | . . . . . . . . . 1 . . . Parts Fused 3 | . . . . . 1 . . . 1 . 1 . Data Loss (minor) 22 | . . . . . 1 4 4 7 3 2 1 . Data Loss (major) 8 | . . . . . . 1 2 2 2 1 . . Misfires 3 | . . . . . . 1 1 1 . . . . Alerts 3 | . . . . . . . 1 1 1 . . . Weapon Failures 4 | . . . . . . . 1 . 3 . . . Overload Shots . | . . . . . . . . . . . . . Overflow Damage 920 | . . . 40 . 116 34 77 8 570 . 75 . Projectiles 187 | . . . . . 6 20 . 8 153 . . . Explosions 367 | . . . 40 . 110 14 77 . 51 . 75 . Melee 366 | . . . . . . . . . 366 . . . Knockbacks 50 | . . . . . . 13 5 2 30 . . . Impact 9 | . . . . . . . 4 . 5 . . . Kinetic 37 | . . . . . . 12 1 2 22 . . . Secondary 4 | . . . . . . 1 . . 3 . . . Self-Inflicted Damage 308 | . 15 6 79 . . 143 57 . 8 . . . Shots 11 | . 2 1 3 . . 2 3 . . . . . Rammed 53 | . . . . . . . 52 . 1 . . . Targets Rammed 53 | . . . . . . . 52 . 1 . . . Kicked . | . . . . . . . . . . . . . Crushed . | . . . . . . . . . . . . . Highest Temperature 477 | . 230 40 126 29 145 347 282 229 477 285 149 . Average Temperature 77 | . 67 23 25 11 42 101 89 49 91 99 79 . Received Heat Transfer 3159 | . . . 453 132 61 321 181 269 1742 . . . Effects 10 | . . . . . . 6 . . 4 . . . Shutdowns 1 | . . . . . . . . . 1 . . . Energy Bleed 5 | . . . . . . 4 . . 1 . . . Interference 2 | . . . . . . 2 . . . . . . Matter Decay 1 | . . . . . . . . . 1 . . . Damage (minor) 1 | . . . . . . . . . 1 . . . Siege Activations . | . . . . . . . . . . . . . Martial Activations . | . . . . . . . . . . . . . Shielding Activations . | . . . . . . . . . . . . . Robots Disrupted . | . . . . . . . . . . . . . Combat Hostiles . | . . . . . . . . . . . . . Robots Corrupted 5 | . . . . . . . . . 5 . . . Combat Hostiles 4 | . . . . . . . . . 4 . . . Parts Fried 6 | . . . . . . . . . 6 . . . Impact Corruptions 15 | . . . . . . . . . 15 . . . Robots Melted 2 | . . . . . . . . . 2 . . . Combat Hostiles 2 | . . . . . . . . . 2 . . . Parts Melted 11 | . 2 . 1 . . . . 1 7 . . . Heat Transferred 4041 | . 1221 . 370 . 400 . . . 2050 . . . Parts Sabotaged . | . . . . . . . . . . . . . Parts Stolen . | . . . . . . . . . . . . . Parts Stripped . | . . . . . . . . . . . . . Power Chain Reactions . | . . . . . . . . . . . . . Alert | -11 -10 -10 -9 -9 -8 -8 -8 -8 -6 -6 -6 -6 ------- Run | Yrd Mat Min Mat Min Mat Sto Gar Rec Fac Low Low Zio Maximum Alert Level 4 | . . . 2 1 1 1 4 2 3 . . . Low Security (%) 43 | 100 100 100 21 91 22 75 13 . 54 . . . Level 1 26 | . . . 19 8 77 24 18 72 20 . . . Level 2 21 | . . . 59 . . . 18 27 24 . . . Level 3 6 | . . . . . . . 35 . . . . . Level 4 2 | . . . . . . . 14 . . . . . Level 5 . | . . . . . . . . . . . . . High Security . | . . . . . . . . . . . . . Max Security . | . . . . . . . . . . . . . Peak Influence 1443 | . 142 115 545 215 390 259 1443 686 725 . . . Initial 649 | . . 12 7 210 42 146 109 649 161 . . . Average 311 | . 62 29 347 115 267 166 689 393 209 . . . Influence Increases 6363 | . 374 171 1173 311 616 563 1384 326 1325 . 120 . Destroy 0b10 Robot/C 3240 | . 260 120 660 240 240 260 420 180 760 . 100 . Destroy 0b10 Robot/NC 370 | . 25 . 105 20 50 50 20 60 40 . . . Destroy Leader 698 | . 54 20 200 30 64 58 30 . 222 . 20 . Allied During Kill 114 | . . . . 21 49 4 5 14 21 . . . Successful Hack 95 | . 12 . 14 . 31 26 . 5 7 . . . Disable Machine 480 | . 15 15 30 . 150 75 30 30 135 . . . Anti-Garrison Action 750 | . . . . . . . 750 . . . . . Destroy Structure 446 | . 8 16 89 . 32 90 129 37 45 . . . Advance Influence 50 | . . . . . . . . . 50 . . . Lose Combat Pursuer 120 | . . . 75 . . . . . 45 . . . Influence Decreases 6363 | . 343 183 651 741 379 742 110 1503 868 530 289 24 Entered New Map 1972 | . . 19 12 331 69 202 60 794 155 268 38 24 Time Decay 3767 | . 293 164 579 410 290 490 . 559 469 262 251 . Lost Part 300 | . 40 . 60 . . 30 10 . 160 . . . Lost Ally 174 | . 10 . . . 20 20 40 . 84 . . . Purge Threat 150 | . . . . . . . . 150 . . . . Squads Dispatched 26 | . 1 . 4 . . 2 . . 19 . . . Investigation 4 | . 1 . 1 . . . . . 2 . . . Extermination 7 | . . . . . . . . . 7 . . . Reinforcement 13 | . . . 3 . . 2 . . 8 . . . Assault 1 | . . . . . . . . . 1 . . . Garrison 1 | . . . . . . . . . 1 . . . Intercept . | . . . . . . . . . . . . . Searches Triggered . | . . . . . . . . . . . . . Construction Impeded 4 | . . . 1 . . 1 . . 2 . . . Haulers Reinforced . | . . . . . . . . . . . . . Active Scanning Responses . | . . . . . . . . . . . . . Cargo Convoy Interrupts . | . . . . . . . . . . . . . Stealth | -11 -10 -10 -9 -9 -8 -8 -8 -8 -6 -6 -6 -6 --------- Run | Yrd Mat Min Mat Min Mat Sto Gar Rec Fac Low Low Zio Distress Signals 6 | . . . . . 2 1 . 1 2 . . . Communications Jammed . | . . . . . . . . . . . . . Distress Signals . | . . . . . . . . . . . . . Times Spotted 226 | . 23 4 54 14 14 20 20 10 59 1 5 2 Peak Tracking Total 7 | . 5 3 7 3 5 6 7 4 7 1 4 2 Tactical Retreats 6 | . . . 4 . . . . . 2 . . . Traps | -11 -10 -10 -9 -9 -8 -8 -8 -8 -6 -6 -6 -6 ------- Run | Yrd Mat Min Mat Min Mat Sto Gar Rec Fac Low Low Zio Traps Triggered 8 | . 1 . 1 . 1 1 3 . 1 . . . Indirectly . | . . . . . . . . . . . . . Trap Hack Attempts . | . . . . . . . . . . . . . Triggered . | . . . . . . . . . . . . . Disarmed . | . . . . . . . . . . . . . Reprogrammed . | . . . . . . . . . . . . . Reused . | . . . . . . . . . . . . . Traps Extracted . | . . . . . . . . . . . . . Installed . | . . . . . . . . . . . . . Triggered . | . . . . . . . . . . . . . Machines | -11 -10 -10 -9 -9 -8 -8 -8 -8 -6 -6 -6 -6 ---------- Run | Yrd Mat Min Mat Min Mat Sto Gar Rec Fac Low Low Zio Machines Disabled 37 | . 1 1 2 . 10 5 6 2 9 1 . . Max in Single Turn 9 | . 1 1 1 . 9 2 1 1 6 1 . . Garrison Relay 3 | . . . . . . . 3 . . . . . Machines Repaired . | . . . . . . . . . . . . . Machines Dismantled . | . . . . . . . . . . . . . Machines Sabotaged . | . . . . . . . . . . . . . Overloaded Fab Kills . | . . . . . . . . . . . . . Hacking | -11 -10 -10 -9 -9 -8 -8 -8 -8 -6 -6 -6 -6 --------- Run | Yrd Mat Min Mat Min Mat Sto Gar Rec Fac Low Low Zio Machines Accessed 47 | . 6 1 9 . 8 7 2 5 7 . 2 . Terminals 33 | . 5 1 6 . 6 4 2 4 4 . 1 . Fabricators . | . . . . . . . . . . . . . Repair Stations 5 | . 1 . 2 . 1 1 . . . . . . Recycling Units 2 | . . . . . . 1 . . 1 . . . Scanalyzers 2 | . . . 1 . 1 . . . . . . . Garrison Access 3 | . . . . . . 1 . . 2 . . . Total Hacks 121 | . 12 4 24 . 23 27 3 13 13 . 2 . Successful 60 | . 2 1 16 . 11 19 1 6 2 . 2 . Failed 60 | . 10 3 8 . 12 8 2 7 10 . . . Catastrophic 11 | . 2 . . . 2 . . 1 6 . . . Database Lockouts 1 | . . . . . . . . . 1 . . . Manual 65 | . 10 4 13 . 11 16 . 4 6 1 . . Terminals 84 | . 10 4 18 . 14 15 3 11 8 . 1 . Fabricators . | . . . . . . . . . . . . . Repair Stations 10 | . 2 . 4 . 2 2 . . . . . . Recycling Units 9 | . . . . . . 7 . . 2 . . . Scanalyzers 9 | . . . 2 . 7 . . . . . . . Garrison Access 6 | . . . . . . 3 . . 3 . . . Terminal Hacks 20 | . . 1 5 . 3 3 1 4 1 . 2 . Record 1 | . . . . . . . . . . . 1 . Part Schematic 2 | . . . . . . 1 . . 1 . . . Robot Analysis 3 | . . 1 1 . . . . 1 . . . . Open Door 1 | . . . . . . . . . . . 1 . Branch Access Points 2 | . . . 1 . 1 . . . . . . . Terminal Index 3 | . . . 1 . 1 1 . . . . . . Unreport Threat 1 | . . . . . . . . 1 . . . . Locate Traps 2 | . . . 1 . . 1 . . . . . . Hauler Manifests 2 | . . . 1 . 1 . . . . . . . Garrison Registry 1 | . . . . . . . 1 . . . . . Release Object 2 | . . . . . . . . 2 . . . . Fabricator Hacks . | . . . . . . . . . . . . . Repair Station Hacks 8 | . . . 4 . 2 2 . . . . . . Scan Component 4 | . . . 2 . 1 1 . . . . . . Repair 4 | . . . 2 . 1 1 . . . . . . Recycling Unit Hacks 8 | . . . . . . 7 . . 1 . . . Process 2 | . . . . . . 2 . . . . . . Report Inventory 1 | . . . . . . 1 . . . . . . Retrieve Matter 4 | . . . . . . 4 . . . . . . Retrieve Components 1 | . . . . . . . . . 1 . . . Scanalyzer 6 | . . . 2 . 4 . . . . . . . Insert Component 2 | . . . 1 . 1 . . . . . . . Analyze 4 | . . . 1 . 3 . . . . . . . Garrison Access Hacks 1 | . . . . . . 1 . . . . . . Unlock Access 1 | . . . . . . 1 . . . . . . Unauthorized Hacks 16 | . 2 . 5 . 2 5 . 2 . . . . Terminals 15 | . 2 . 5 . 2 4 . 2 . . . . Assimilate 3 | . 1 . 1 . . 1 . . . . . . Botnet 8 | . . . 3 . 1 2 . 2 . . . . Operators 4 | . 1 . 1 . 1 1 . . . . . . Fabricators . | . . . . . . . . . . . . . Repair Stations . | . . . . . . . . . . . . . Recycling Units . | . . . . . . . . . . . . . Scanalyzers . | . . . . . . . . . . . . . Garrison Access 1 | . . . . . . 1 . . . . . . Reprogram 1 | . . . . . . 1 . . . . . . Data Cores Recovered 1 | . . . 1 . . . . . . . . . Used . | . . . . . . . . . . . . . Hacking Detections 40 | . 6 1 7 . 7 7 1 4 7 . . . Full Trace Events 5 | . . . . . . 2 . 1 2 . . . Feedback Events . | . . . . . . . . . . . . . Feedback Blocked . | . . . . . . . . . . . . . Robot Schematics Acquired . | . . . . . . . . . . . . . Robots Built . | . . . . . . . . . . . . . Authchips . | . . . . . . . . . . . . . Time . | . . . . . . . . . . . . . Total Robot Build Rating . | . . . . . . . . . . . . . Part Schematics Acquired 3 | . . . 1 . . 1 . . 1 . . . Parts Built . | . . . . . . . . . . . . . Authchips . | . . . . . . . . . . . . . Time . | . . . . . . . . . . . . . Total Part Build Rating . | . . . . . . . . . . . . . Parts Repaired 4 | . . . 2 . 1 1 . . . . . . Time 147 | . . . 58 . 51 38 . . . . . . Parts Recycled . | . . . . . . . . . . . . . Recycled Matter 535 | . . . . . . 535 . . . . . . Retrieved Matter 741 | . . . . . . 741 . . . . . . Retrieved Components . | . . . . . . . . . . . . . Parts Scanalyzed 2 | . . . 1 . 1 . . . . . . . Part Schematics Acquired 1 | . . . 1 . . . . . . . . . Parts Damaged . | . . . . . . . . . . . . . Bothacking | -11 -10 -10 -9 -9 -8 -8 -8 -8 -6 -6 -6 -6 ------------ Run | Yrd Mat Min Mat Min Mat Sto Gar Rec Fac Low Low Zio Used RIF Installer . | . . . . . . . . . . . . . Robots Hacked . | . . . . . . . . . . . . . Non-combat . | . . . . . . . . . . . . . Combat . | . . . . . . . . . . . . . Robot Hacks Applied . | . . . . . . . . . . . . . Relay Couplers Released 17 | . . . . . . . 13 . 4 . . . Machine Destruction 13 | . . . . . . . 13 . . . . . Programmers 4 | . . . . . . . . . 4 . . . Fabnet Peak Effective % . | . . . . . . . . . . . . . Robots Rewired 11 | . . . . . . . 3 8 . . . . Allies Hacked 1 | . . . . . . . . . 1 . . . Hacks Repelled . | . . . . . . . . . . . . . Allies | -11 -10 -10 -9 -9 -8 -8 -8 -8 -6 -6 -6 -6 -------- Run | Yrd Mat Min Mat Min Mat Sto Gar Rec Fac Low Low Zio Total Allies 17 | . 1 . . 4 . 1 3 8 . . . . Largest Group 8 | . 1 . . 4 4 1 3 8 8 . . . Highest-Rated Group 139 | . 10 . . 71 71 16 120 139 139 . . . Highest-Rated Ally 40 | . 10 . . 31 31 16 40 40 21 . . . Initial Warlord ECA Mod 27 | . . . . . . . . 7 5 5 5 5 Total Orders . | . . . . . . . . . . . . . Ally Attacks 107 | . . . . 6 44 14 8 12 23 . . . Total Damage 1829 | . . . . 53 444 171 223 305 633 . . . Kills 17 | . . . . 1 3 1 2 7 3 . . . Allies Corrupted . | . . . . . . . . . . . . . Allies Melted . | . . . . . . . . . . . . . Intel | -11 -10 -10 -9 -9 -8 -8 -8 -8 -6 -6 -6 -6 ------- Run | Yrd Mat Min Mat Min Mat Sto Gar Rec Fac Low Low Zio Active Infowar (turns) 10028 | . 188 . 2226 995 599 1198 407 276 2318 557 1005 259 Sensors 5188 | . . . . . 287 812 5 276 1987 557 1005 259 Terrain 188 | . 188 . . . . . . . . . . . Structural 5701 | . . . 2226 995 582 882 402 . 614 . . . T.N.C. 1210 | . . . . . 23 . . . 1187 . . . Machine Analysis 2780 | . . . 1500 995 285 . . . . . . . Robot Analysis Total 3 | . . 1 1 . . . . 1 . . . . Derelict Logs Recovered 5 | . . 1 . 2 . . . . . . 2 . Drone Launches . | . . . . . . . . . . . . . Drone Recoveries . | . . . . . . . . . . . . . Exploration | -11 -10 -10 -9 -9 -8 -8 -8 -8 -6 -6 -6 -6 ------------- Run | Yrd Mat Min Mat Min Mat Sto Gar Rec Fac Low Low Zio Turns Passed 16711 | 35 738 766 2269 995 718 1286 2618 1655 3805 562 1005 259 Spaces Moved 8227 | 33 542 635 1178 535 403 708 925 656 1605 341 498 168 Core 12 | 12 . . . . . . . . . . . . Treads 2726 | . . . 151 1 . 1 925 518 133 331 498 168 Legs 124 | . . . . . . . . . 114 10 . . Wheels 4301 | 21 542 635 1027 534 403 707 . 138 294 . . . Hover 1064 | . . . . . . . . . 1064 . . . Flight . | . . . . . . . . . . . . . Fastest Speed 50 | 50 80 110 110 120 120 120 240 120 117 154 154 154 Average Speed 154 | 69 98 110 132 120 125 129 240 200 170 154 154 154 Slowest Speed 425 | 80 140 110 240 240 135 240 240 249 425 154 154 154 Overloaded Moves . | . . . . . . . . . . . . . Propulsion Burnouts . | . . . . . . . . . . . . . Robots Hopped . | . . . . . . . . . . . . . Potential Cave-ins . | . . . . . . . . . . . . . Cave-ins Triggered . | . . . . . . . . . . . . . Exploration Rate (%) 63 | 3 90 96 91 90 43 57 80 91 37 61 76 13 Regions Visited 12 Branch Regions 7 Pre-discovered Areas 5 | . . 2 . 2 . 1 . . . . . . Known Exits Taken 7 | . . . 1 . 1 1 . 1 1 1 1 . Unknown Exits Taken 4 | 1 1 1 . 1 . . . . . . . . Scrap Searched 7 | . . 2 . 1 . . . . . 3 1 . Spaces Dug 46 | . . . . . 2 3 35 . 4 2 . . Terrain Destroyed 492 | . 10 17 110 . 38 85 101 63 38 2 28 . Melee 2 | . . . . . . . . . . 2 . . Projectile 63 | . . . . . 6 28 . 1 28 . . . AOE 427 | . 10 17 110 . 32 57 101 62 10 . 28 . Terrain Rammed . | . . . . . . . . . . . . . Walls Destroyed . | . . . . . . . . . . . . . Machines Disabled . | . . . . . . . . . . . . . Actions | -11 -10 -10 -9 -9 -8 -8 -8 -8 -6 -6 -6 -6 --------- Run | Yrd Mat Min Mat Min Mat Sto Gar Rec Fac Low Low Zio Total 11182 | 44 658 694 1694 828 560 969 1170 943 2357 368 728 169 Wait 1810 | . 45 50 309 259 78 143 53 169 479 11 214 . Move 8212 | 32 541 634 1177 534 402 707 921 655 1604 340 497 168 Hop . | . . . . . . . . . . . . . Pick Up 119 | 8 12 2 35 1 11 10 6 9 17 3 5 . Fast Attach 17 | 1 . . 5 . 5 4 2 . . . . . Attach 51 | 3 6 . 8 . 3 6 1 3 16 4 1 . Detach 9 | . . . . . . . . 2 5 1 1 . Swap 165 | . 5 3 35 5 14 29 29 19 26 . . . Drop 92 | . . . 27 2 14 10 8 15 11 1 3 1 Fire 534 | . 49 5 98 27 33 52 51 50 157 5 7 . Melee 50 | . . . . . . . 7 . 40 3 . . Ram 1 | . . . . . . . . . 1 . . . Kick . | . . . . . . . . . . . . . Crush 52 | . . . . . . . 52 . . . . . Escape Stasis 14 | . . . . . . 8 6 . . . . . Rewire 56 | . . . . . . . 34 21 1 . . . Trap . | . . . . . . . . . . . . . Miscellaneous . | . . . . . . . . . . . . . Route ------- -11/Scrapyard -10/Materials (discovered 4 exits: *Mat x2 / *Min x2) -10/Mines (discovered 3 exits: *Mat x2 / [*Sub]) -9/Materials (discovered 5 exits: *Mat x3 / *Min x2) -9/Mines (discovered 3 exits: *Mat x2 / [*Exi]) -8/Materials (discovered 3 exits: [*Fac] / *Sto x2) -8/Storage -8/Garrison (discovered 3 exits: *Rec x3) -8/Recycling -6/Factory (discovered 2 exits: *Fac / *Low) -6/Lower Caves -6/Lower Caves -6/Zion History --------- Turn | Location | Event 19 | -11/Scrapyard | Discovered new exit (range 15) 36 | -11/Scrapyard | Entered Materials 217 | -10/Materials | Discovered new exit (range 13) 315 | -10/Materials | Build established: Mutant 341 | -10/Materials | Discovered new exit (range 14) 459 | -10/Materials | Discovered new exit (range 11) 730 | -10/Materials | Discovered new exit (range 8) 774 | -10/Materials | Entered Mines 814 | -10/Mines | Received a Rocket Launcher from a helpful Derelict 858 | -10/Mines | Learned location of Zion (-6) 901 | -10/Mines | Discovered new exit (range 8) 945 | -10/Mines | Discovered new exit (range 13) 1233 | -10/Mines | A weapon hastily lodged in a ceiling crevice suddenly fell to the ground 1365 | -10/Mines | Discovered new exit (range 9) 1389 | -10/Mines | Learned location of Storage (-8) 1540 | -10/Mines | Entered Materials 1540 | -9/Materials | Evolved 2 slots: Utility x2 1595 | -9/Materials | Discovered new exit (range 5) 1687 | -9/Materials | Repaired Wheel 2273 | -9/Materials | Lost 3 parts (2u1w) 2380 | -9/Materials | Destroyed 7 combat bots 2462 | -9/Materials | Discovered new exit (range 8) 2829 | -9/Materials | Discovered new exit (range 14) 2987 | -9/Materials | Repaired Arm. Wheel 3343 | -9/Materials | Discovered new exit (range 13) 3345 | -9/Materials | Identified exit to Mines 3809 | -9/Materials | Entered Mines 3889 | -9/Mines | Learned Materials terminal intel 3929 | -9/Mines | Discovered new exit (range 4) 4014 | -9/Mines | Deemed a non-threat by the Exiles lab entrance 4014 | -9/Mines | Discovered new exit (range 5) 4138 | -9/Mines | Excavation squad dispatched 4138 | -9/Mines | A large section of the Mines collapsed 4438 | -9/Mines | Core integrity fell below 50% 4489 | -9/Mines | Assisted by bots powering up and referring to "LRC-V3" 4542 | -9/Mines | Escorted by a lone wolf Derelict 4658 | -9/Mines | Discovered new exit (range 9) 4692 | -9/Mines | Found a damaged Exp. Sensor Array with a note attached 4695 | -9/Mines | Found Prototype Device 4804 | -9/Mines | Entered Materials 4804 | -8/Materials | Accompanied by 4 allies 4804 | -8/Materials | Evolved 2 slots: Utility x2 4805 | -8/Materials | Loaded intel: 12 terminal locations 4882 | -8/Materials | Repaired Imp. Assault Rifle 5090 | -8/Materials | Identified Exp. Sensor Array 5405 | -8/Materials | Discovered new exit (range 8) 5485 | -8/Materials | Identified exit to Storage 5522 | -8/Materials | Entered Storage 5522 | -8/Storage | Accompanied by 1 ally 5592 | -8/Storage | Repaired Hrd. Medium Armor Plating 5945 | -8/Storage | Identified exit to Garrison 6034 | -8/Storage | Learned location of Armory (-4) 6808 | -8/Storage | Entered Garrison 6808 | -8/Garrison | Accompanied by 1 ally 6845 | -8/Garrison | Discovered new exit (range 67) 6845 | -8/Garrison | Discovered new exit (range 100) 6845 | -8/Garrison | Discovered new exit (range 47) 7188 | -8/Garrison | Triggered checkpoint 7188 | -8/Garrison | Triggered checkpoint 7221 | -8/Garrison | Destroyed 7 combat bots 7678 | -8/Garrison | Triggered checkpoint 7840 | -8/Garrison | Garrison Relay disabled 8120 | -8/Garrison | Triggered checkpoint 8397 | -8/Garrison | Identified exit to Recycling 8402 | -8/Garrison | Attempted to access garrison exit controls, blocked by remote lockdown 8448 | -8/Garrison | Triggered checkpoint 8655 | -8/Garrison | Attempted to access garrison exit controls, blocked by remote lockdown 8834 | -8/Garrison | Garrison Relay disabled 9144 | -8/Garrison | Triggered checkpoint 9290 | -8/Garrison | Triggered checkpoint 9354 | -8/Garrison | Garrison Relay disabled 9426 | -8/Garrison | Entered Recycling 9426 | -8/Recycling | Accompanied by 1 ally 9832 | -8/Recycling | Discovered new exit (range 5) 9976 | -8/Recycling | Scanned before Scraplab entrance 10010 | -8/Recycling | Angered Scraplab inhabitants 10012 | -8/Recycling | Found Prototype Device 10135 | -8/Recycling | Identified Scrap Engine 10435 | -8/Recycling | P-60 Hacker assimilated allied Marksman 3a 10819 | -8/Recycling | Build established: Commander-Construct 11059 | -8/Recycling | Identified exit to Factory 11081 | -8/Recycling | Entered Factory 11081 | -6/Factory | Accompanied by 8 allies 11081 | -6/Factory | Evolved 4 slots: Propulsion x1, Utility x3 11926 | -6/Factory | Build established: Construct 11979 | -6/Factory | Lost 3 allies 13030 | -6/Factory | Garrison activated, responded to threat 13092 | -6/Factory | Discovered new exit (range 12) 13129 | -6/Factory | Identified exit to Factory 13284 | -6/Factory | Central database locked down 13732 | -6/Factory | Build established: Hacker-Construct 14008 | -6/Factory | Lost 3 parts (1n1u1w) 14039 | -6/Factory | Core integrity fell below 50% 14154 | -6/Factory | Lost 5 parts (1n3u1w) 14388 | -6/Factory | Build established: Mutant 14581 | -6/Factory | First assault squad dispatched 14757 | -6/Factory | Build established: Construct 14781 | -6/Factory | Core integrity fell below 20% 14810 | -6/Factory | Destroyed 7 combat bots 14845 | -6/Factory | Discovered new exit (range 15) 14885 | -6/Factory | Identified exit to Lower Caves 14886 | -6/Factory | Entered Lower Caves 15322 | -6/Lower Caves | Spotted B-75 Beast 15399 | -6/Lower Caves | Discovered new exit (range 15) 15418 | -6/Lower Caves | Identified exit to Lower Caves 15425 | -6/Lower Caves | Acquired the password to a Derelict Tinkerer's latest research 15436 | -6/Lower Caves | Found Prototype Special Weapon 15438 | -6/Lower Caves | Identified Molecular Deconstructor 15448 | -6/Lower Caves | Entered another Lower Caves area 15668 | -6/Lower Caves | Build established: Mutant 15740 | -6/Lower Caves | Encountered a Warlord checkpoint 15758 | -6/Lower Caves | Learned 4 Factory zone layouts 16441 | -6/Lower Caves | Discovered new exit (range 5) 16451 | -6/Lower Caves | Identified exit to Zion 16453 | -6/Lower Caves | Entered Zion 16526 | -6/Zion | System corruption cleaned by Quarantine Array 16691 | -6/Zion | Attacked by Zionites 16691 | -6/Zion | Spotted L1-LSM(B) 16691 | -6/Zion | Spotted Q5-CQY(B) 16712 | -6/Zion | Destroyed by Q5-CQY(B) with Slug Cannon Last Messages --------------- 16470_ System corrupted: Matter fused (-5). 16526_ System quarantine in progress... 16526_ PUBLIC SERVICE ANNOUNCEMENT: Quarantine Array scanned 1 system, cleaned 1. 16540_ Discarded System Guard. 5I-B8A(c): Are you plugged in yet? I've got the latest and greatest hardware for listening in on those chatty Unaware! So what are you? A scout? A skirmisher? Nah, you strike me as the looter type... 16685_ System quarantine in progress... 16685_ PUBLIC SERVICE ANNOUNCEMENT: Quarantine Array scanned 1 system, cleaned 0. 16691_ PUBLIC SERVICE ANNOUNCEMENT: We have a pariah in our midst! Give them the departure escort they deserve! 16691_ System Quarantine Field Array disabled. 16691_ Slug penetrates System Quarantine Field Array. Map ----- +----------------------------------------------------+ | ?????????????????????????????????????????????????? | | ?????????????????????????????????????????????????? | | ?????????????????????????????????????????????????? | | ?????????????????????????????????????????????????? | | ?????????????????????????????????????????????????? | | ???????????????????????????????????????? ???????? | | ???????????????????????????????????????? ??????? | | ???????????????????????????????????????? ??????? | | ????????????????????????????????????????# ??????? | | ????????????????????????????????????????# ??????? | | ????????????????????????????????????????# #?????? | | ??????????????????????????????###???????# #?????? | | ??????????????????????????##### #???????# #???### | | ?????????????????????????## #???????# #?### | | ?????????????????????????# #???????# ### | | ?????????????????????????# ####????# ## | | ??????????????????????????# ## #????# # | | ??????????????????????????# ##???# ## | | ???????????????????????##### ##??# ##? | | ???????????????????????#!!#" #??# #?? | | ?????####?????????????##!!" ##?# #### | | ?????# "############?# c ### ## | | ?????# " """"""""#?##! " | | ???### """" #??# !##" | | ???# ;;######### ## | | @ ### ### # | | % ## #####?### | | """# %## % ##??????? | | ???### """""# ####???? | | ?????# """"""""""# #???? | | ?????# "############ ##### | | ?????####???????????## ## | | ?????????????????????###### ### ### | | ?????????????????????????# ##?# #### | | ?????????????????????????# ##??# ##### ## | | ?????????????????????????####??# ##### #?# | | ???????????????????????????????### ##?# #??## | | ?????????????????????????????????# #?## ##??? | | ?????????????????????????????????# ### #??? | | ?????????????????????????????????# ## #??? | | ?????????????????????????????????###### ###??? | | ??????????????????????????????????????#### #????? | | ????????????????????????????????????????## ##???? | | ????????????????????????????????????????# #???? | | ????????????????????????????????????????# #???? | | ????????????????????????????????????????## ##???? | | ???????????????????????????????????????## #???? | | ???????????????????????????????????????# ##???? | | ???????????????????????????????????????## #???? | | ???????????????????????????????????????# #???? | +----------------------------------------------------+ Best States ------------- Heat Dissipation 56 Energy Generation 22 Energy Capacity 300 Matter Stores 300 Matter Capacity 300 Sight Range 16 Robot Scan Range 20 Terrain Scan Range 14 Terrain Scan Density 10 Corruption Containment 8 Armor Coverage 675 Resistance: KI 20 Resistance: TH 15 Evasion (%) 50 Targeting Accuracy 8 Core Analysis 6 Recoil Reduction 3 Offensive Hacking 20 Defensive Hacking 10 Authchip Count 4 Item Schematics ----------------- Imp. VTOL Module | -9/Materials | Scanalyzed Arm. Huge Wheel | -8/Storage | Hacked Imp. Hardlight Generator | -6/Factory | Hacked Robot Schematics ------------------ None Fabricated ------------ Nothing Repaired ---------- Wheel | 10% | -9/Materials Arm. Wheel | 32% | -9/Materials Imp. Assault Rifle | 20% | -8/Materials Hrd. Medium Armor Plating | 65% | -8/Storage Alien Tech Used ----------------- None Achievements -------------- None Challenges ------------ None Game ------ Seed GhostCentriumHammer Manual? 0 Play Time 02:07:14 Cumulative 113.7 hours Start 2025.10.12 @ 14:14:42 End 2025.10.12 @ 19:20:37 Sessions 1 Manual Loads 0 Difficulty Rogue Special Mode None Game No. 177 Rogue 176 Adventurer 1 Explorer 0 Win Type - Total 1 Types 0/0/0/1/0/0/0/0/0/0 Lore% 60 Gallery% 54 Achievement% 49 Wizard Run 0 Options --------- Layout 1 ASCII 0 Keyboard 0 Movement Mouse Keybinds 0 Fullscreen 2 Font 24/Smallcaps Map View 50x35 Zoom Use 0% Tactical HUD 1 Map Filters NONE Filters NONE Steam 1 RUN: 63c134e5-62cb-4ded-a8f5-7cac648e430a